Cogmind - Beta 16 @@@ ROGUE MODE // 2025.11.26 @ 10:55:21 Player: Mozco Result: Self-destructed Performance ------------- Evolutions (8) 4000 Regions Visited (23) 4600 Robots Destroyed (557) 2785 Value Destroyed (24651) 24651 Prototype IDs (118) 2360 Alien Tech Used (11) 2200 Bonus (10186) 10186 TOTAL SCORE: 50782 Bonus ------- High Alert Combat Kills 3498 Follower Combat Kills 90 Aligned with FarCom 300 Met Zhirov 300 Met Warlord at Base 500 MAIN.C Attacked Warlord 500 Warlord Defense Kills 1846 Used Core Reset Matrix 3000 Scanned by Researcher 500 Friendly Fire -348 Cogmind --------- Core Integrity 79/1700 Matter 29/300 Energy 100/100 System Corruption 7% Temperature Cool (0) Movement Core (300) Ox5 Location -2/Section 7 Parts ------- > --- POWER (2) -------- Matter Drive > --- PROPULSION (4) --- (None) > --- UTILITY (15) ----- 2N-1CE's Frost Array Advanced Coolant Injector Experimental Signal Interpreter Advanced Component Analysis Suite > --- WEAPON (5) ------- (None) > --- INVENTORY (7) ---- Experimental Matter Compressor (0) Potential Cannon Core Cannon Heavy Hardcell Cannon Peak State ------------ > --- POWER ------------ Graviton Reactor Light Quantum Reactor > --- PROPULSION ------- Centrium Wheel High-density Centrium Wheel > --- UTILITY ---------- 2N-1CE's Frost Array Huge Storage Unit Advanced Energy Well Enhanced Optical Array Spectral Analyzer Experimental Signal Interpreter Experimental Targeting Computer Experimental Targeting Computer Advanced Target Analyzer Experimental Core Analyzer Experimental Transmission Jammer Experimental Thermal Shield System Mapper Advanced Corruption Screen Advanced Recalibrator > --- WEAPON ----------- Hypervelocity Mass Driver Gamma Bomb Array Core Stripper > --- INVENTORY -------- Graviton Reactor Centrium Wheel Centrium Wheel Experimental Matter Compressor Long-range Sensor Array Advanced Component Analysis Suite Transdimensional Reconstructor Terrabomb Terrabomb Terrabomb Heavy Dispersion Rifle Enhanced Quantum Rifle High-powered Disruptor Cannon Potential Cannon Null Cannon Core Cannon Hypervelocity Multirail Hypervelocity Mass Driver Hypervelocity Mass Driver Heavy Hardcell Cannon Fusion Bomb Launcher [Rating: 217] Favorites ----------- Power Graviton Reactor Engine Improved Deuterium Engine Power Core Micro Fission Core Reactor Graviton Reactor Propulsion Centrium Wheel Wheel Centrium Wheel Utility Huge Storage Unit Device Advanced Heat Sink Storage Huge Storage Unit Processor Advanced Targeting Computer Hackware System Mapper Protection Layered Medium Armor Plating Weapon Compact Ion Cannon Energy Gun Precision Phase Gun Energy Cannon Compact Ion Cannon Ballistic Gun Improved Assault Rifle Ballistic Cannon Hardcell Cannon Launcher Long-range Missile Launcher Impact Weapon Core Stripper Slashing Weapon Ripper Piercing Weapon Vortex Lance Special Melee Weapon Datajack Build | -11 -10 -9 -9 -9 -8 -8 -7 -6 -5 -5 -5 -5 -4 -4 -4 -4 -4 -3 -3 -3 -2 -2 -2 ------- Run | Yrd Mat Mat Min Exi Min Mat Fac Fac Fac Upp Upp Zhi Pro Fac Upp Upp War Pro Res Tes Res Qua Sec Slots Evolved 16 | . . 2 . . . 2 2 2 2 . . . . 2 . . . . 2 . 2 . . Power 1 | . . . . . . . . . 1 . . . . . . . . . . . . . . Propulsion . | . . . . . . . . . . . . . . . . . . . . . . . . Utility 13 | . . 2 . . . 2 1 2 1 . . . . 2 . . . . 1 . 2 . . Weapon 2 | . . . . . . . 1 . . . . . . . . . . . 1 . . . . Parts Attached 382 | 5 16 36 5 1 . 20 24 53 11 3 1 7 9 36 6 6 14 5 12 45 19 17 31 Power 46 | 1 3 5 . . . 1 2 6 2 1 1 . . 5 . 2 1 . . 6 3 3 4 Engine 19 | 1 3 5 . . . 1 2 4 1 . 1 . . . . 1 . . . . . . . Core 6 | . . . . . . . . 1 1 1 . . . 2 . 1 . . . . . . . Reactor 21 | . . . . . . . . 1 . . . . . 3 . . 1 . . 6 3 3 4 Propulsion 32 | 2 3 7 1 . . 4 2 5 . 1 . . 1 2 . . . . . 1 2 . 1 Treads . | . . . . . . . . . . . . . . . . . . . . . . . . Leg . | . . . . . . . . . . . . . . . . . . . . . . . . Wheel 32 | 2 3 7 1 . . 4 2 5 . 1 . . 1 2 . . . . . 1 2 . 1 Hover . | . . . . . . . . . . . . . . . . . . . . . . . . Flight . | . . . . . . . . . . . . . . . . . . . . . . . . Utility 177 | . 6 12 2 . . 12 10 26 7 . . 6 5 16 3 3 7 4 7 21 8 10 12 Device 71 | . 2 2 . . . 2 4 13 2 . . 3 3 7 1 2 2 3 3 10 4 4 4 Storage 12 | . 1 3 1 . . . . . 1 . . . . . . . . . . 1 . 2 3 Processor 31 | . . . . . . 4 . 4 3 . . . . 5 . 1 2 1 1 3 1 4 2 Hackware 10 | . . . . . . 1 . 1 . . . . . 2 . . 1 . 2 1 1 . 1 Protection 53 | . 3 7 1 . . 5 6 8 1 . . 3 2 2 2 . 2 . 1 6 2 . 2 Artifact . | . . . . . . . . . . . . . . . . . . . . . . . . Weapon 127 | 2 4 12 2 1 . 3 10 16 2 1 . 1 3 13 3 1 6 1 5 17 6 4 14 Energy Gun 58 | . 4 7 . . . 3 6 8 2 . . . 1 9 1 . 2 . 1 8 3 . 3 Energy Cannon 22 | . . . . . . . 1 4 . . . 1 1 2 1 . . . 2 6 2 2 . Ballistic Gun 22 | 2 . 3 1 . . . 1 1 . . . . 1 . 1 1 . . 1 2 . . 8 Ballistic Cannon 10 | . . . . . . . . . . 1 . . . 2 . . 1 1 . 1 . 1 3 Launcher 11 | . . 2 1 . . . 1 3 . . . . . . . . 2 . 1 . 1 . . Special Weapon . | . . . . . . . . . . . . . . . . . . . . . . . . Impact Weapon 1 | . . . . . . . . . . . . . . . . . . . . . . 1 . Slashing Weapon 1 | . . . . . . . 1 . . . . . . . . . . . . . . . . Piercing Weapon 1 | . . . . . . . . . . . . . . . . . 1 . . . . . . Special Melee Weapon 1 | . . . . 1 . . . . . . . . . . . . . . . . . . . Unidentified Prototypes 44 | . . 5 . . . . 3 4 2 . . 3 . 5 . . 4 1 5 11 . 1 . Corrupted Parts 10 | . . . . . . . . 5 . . . . 1 . . . 2 2 . . . . . System Corruption 31 | . . . . . . . . 19 . . . . 7 . . . 2 3 . . . . . Parts Lost 171 | . 7 5 1 . 1 4 6 39 . . 2 . 9 22 4 5 2 1 5 3 2 21 32 Power 20 | . 1 . . . . . . 4 . . . . 2 3 . 1 . . 1 . . 4 4 Propulsion 15 | . 2 2 . . . 2 . 3 . . . . 1 1 . . . . . . . . 4 Utility 77 | . 1 2 1 . . 1 5 16 . . 2 . 5 8 2 3 2 1 3 1 2 10 12 Weapon 59 | . 3 1 . . 1 1 1 16 . . . . 1 10 2 1 . . 1 2 . 7 12 Highest Loss Streak 21 | . 2 1 1 . 1 1 2 7 . . 2 . 4 21 2 3 2 1 5 2 1 8 12 To Critical Strikes 2 | . . . . . . . . . . . . . . . . . . . . . . . 2 Average Backups 20 | 1 12 16 22 23 23 23 19 19 22 22 23 22 21 19 21 22 22 22 22 23 21 20 17 Power 1 | . 1 1 1 1 1 1 1 2 1 1 2 2 1 . 1 1 1 2 2 1 1 1 . Propulsion 2 | . 5 5 5 6 6 5 5 4 3 3 3 3 2 1 . . . . . 1 1 2 1 Utility 6 | . 3 5 5 5 5 7 3 4 7 7 7 7 5 5 10 10 9 7 6 9 7 4 4 Weapon 9 | . 2 5 9 10 9 10 8 7 9 10 11 10 11 10 9 9 10 11 12 9 9 9 9 Tool/Special . | . . . . . . . . . . . . . . . . . . . . . . . . Unused Backups 68 | . 2 4 . . . 3 10 2 1 2 . . . 2 1 1 10 . 3 12 6 1 8 Power 5 | . 1 2 . . . . . . . . . . . . . . . . 1 1 . . . Propulsion 8 | . . . . . . . 5 1 . . . . . . . . 1 . 1 . . . . Utility 31 | . 1 . . . . 1 3 . . . . . . 1 1 1 7 . . 5 6 . 5 Weapon 22 | . . 2 . . . 2 1 1 1 2 . . . 1 . . 2 . 1 6 . 1 2 Tool/Special 2 | . . . . . . . 1 . . . . . . . . . . . . . . . 1 Average Slot Usage (%) 92 | . 91 98 100 100 91 99 89 85 93 93 93 76 88 92 98 96 95 87 88 98 97 93 69 Engine 3 | . 14 11 11 11 11 9 7 2 10 5 5 5 1 . . 1 . . . . . . . Core 1 | . . . . . . . . 2 . 4 5 5 6 6 5 3 4 . . . . . . Reactor 3 | . . . . . . . . . . . . . 1 3 5 5 2 4 4 8 7 7 2 Wheel 10 | . 24 21 22 22 22 17 7 5 5 5 5 5 4 7 10 10 10 10 9 8 7 8 6 Device 17 | . 3 10 11 11 11 9 9 16 28 23 22 24 32 22 20 19 18 19 16 18 19 16 23 Storage 6 | . 13 11 11 11 11 9 6 6 5 5 5 5 5 5 5 5 5 5 4 4 3 5 4 Processor 17 | . . . . . . 9 10 21 21 23 22 13 8 18 26 30 26 23 23 22 20 28 12 Hackware 2 | . . . . . . 7 . . . . . . . 6 5 . . . 6 7 8 4 2 Protection 9 | . 8 21 22 22 22 19 22 7 1 5 5 7 7 5 4 5 11 12 8 5 9 5 1 Energy Gun 6 | . 13 15 7 6 . 9 19 9 3 5 . . 1 7 4 . 5 . . 8 8 4 2 Energy Cannon 2 | . . . . . . . 1 4 11 6 5 3 4 . 1 5 . . 6 6 4 3 . Ballistic Gun 2 | . 13 5 12 11 13 8 . . . . . . 1 . 1 4 1 3 . . . . 4 Ballistic Cannon 2 | . . . . . . . . . . 3 5 . 4 5 5 5 5 4 3 . . 2 4 Peak Build Rating 217 | 5 11 22 23 22 22 32 56 80 88 90 91 97 99 114 122 122 155 156 177 191 205 217 210 Average Rating 109 | 3 8 20 22 21 20 30 47 62 86 89 90 79 94 105 118 113 130 151 169 168 194 199 145 On Entrance 83 | . 5 11 22 22 22 22 31 50 80 88 90 83 97 97 113 121 116 155 156 109 191 192 140 Avg Prop Armor Cover (%) . | . . . . . . . . . . . . . . . . . . . . . . . . Naked Turns . | . . . . . . . . . . . . . . . . . . . . . . . . Heaviest Build 203 | 8 35 65 104 101 101 108 122 120 120 122 128 138 167 160 140 141 203 203 195 186 198 190 169 Greatest Support 36 | 26 26 26 20 20 20 26 28 28 28 28 28 28 28 32 32 32 32 32 32 32 36 36 36 Greatest Overweight (x) 10 | . 2 6 5 5 5 5 5 4 4 4 4 4 5 7 4 4 6 6 6 10 5 5 8 Average Overweight (x) 4 | . 1 2 4 4 4 4 3 3 3 3 4 3 4 4 3 3 4 5 5 4 4 3 3 Largest Inventory Capacity 27 | 5 15 20 25 25 25 25 25 25 25 25 25 25 25 25 25 25 25 25 25 25 25 25 27 Average Capacity 24 | 5 14 17 24 25 25 25 24 25 25 25 25 25 25 25 25 25 25 25 25 25 24 25 25 Most Carried 25 | 3 15 20 24 23 25 25 25 25 25 25 25 25 25 25 25 25 25 25 25 25 25 25 25 Average Carried 22 | 1 12 16 22 23 24 24 23 22 24 24 25 24 23 19 23 24 24 24 23 24 24 23 20 Final Capacity 25 | 5 15 20 25 25 25 25 25 25 25 25 25 25 25 25 25 25 25 25 25 25 25 25 7 Final Carried 25 | 3 15 20 23 23 24 24 23 25 25 25 25 25 25 20 24 24 25 24 24 25 25 24 7 Class Distribution -------------------- 23% | Mutant 14% | Hacker-Gunner 12% | Hacker-Tank 12% | Skirmisher 12% | Gunner 10% | Tank 3% | Scavenger-Gunner Dominant Class ---------------- Mutant | -10/Materials Mutant | -9/Materials Mutant | -9/Mines Mutant | -9/Exiles Mutant | -8/Mines Mutant | -8/Materials Tank | -7/Factory Gunner | -6/Factory Scavenger-Skirmisher | -5/Factory Skirmisher | -5/Upper Caves Skirmisher | -5/Upper Caves Mutant | -5/Zhirov Skirmisher | -4/Proximity Caves Skirmisher | -4/Factory Skirmisher | -4/Upper Caves Gunner | -4/Upper Caves Tank | -4/Warlord Scavenger-Gunner | -3/Proximity Caves Hacker-Gunner | -3/Research Hacker-Gunner | -3/Testing Hacker-Tank | -2/Research Hacker-Gunner | -2/Quarantine Alien-Gunner | -2/Section 7 Resources | -11 -10 -9 -9 -9 -8 -8 -7 -6 -5 -5 -5 -5 -4 -4 -4 -4 -4 -3 -3 -3 -2 -2 -2 ----------- Run | Yrd Mat Mat Min Exi Min Mat Fac Fac Fac Upp Upp Zhi Pro Fac Upp Upp War Pro Res Tes Res Qua Sec Matter Collected 12600 | 209 430 810 214 . 45 532 314 1379 219 120 58 106 452 797 643 362 448 349 573 1774 799 810 1157 Remotely . | . . . . . . . . . . . . . . . . . . . . . . . . Salvage Created 25181 | . 837 1843 275 . 52 2104 1128 4153 220 219 53 330 1070 1032 474 250 701 166 1340 2547 3664 2071 652 Parts 1151 | . 51 147 21 . 3 83 64 142 6 13 4 6 38 47 25 16 33 16 43 133 163 73 24 Haulers Intercepted 16 | . . 6 . . . 2 1 2 . . . . . . . . . . 1 1 2 . 1 Recyclers Shooed 12 | . . . 1 . . 2 1 2 . . . . . 2 . . . . 1 . 1 . 2 Parts Field Recycled . | . . . . . . . . . . . . . . . . . . . . . . . . Retrieved Matter . | . . . . . . . . . . . . . . . . . . . . . . . . Parts Self-Destructed 84 | . . . . . . . . . . 14 7 . 21 . 11 15 . 16 . . . . . Prevented 25 | . . . . . . . . . . 5 . 5 9 . 6 . . . . . . . . Parts Restored . | . . . . . . . . . . . . . . . . . . . . . . . . Kills | -11 -10 -9 -9 -9 -8 -8 -7 -6 -5 -5 -5 -5 -4 -4 -4 -4 -4 -3 -3 -3 -2 -2 -2 ------- Run | Yrd Mat Mat Min Exi Min Mat Fac Fac Fac Upp Upp Zhi Pro Fac Upp Upp War Pro Res Tes Res Qua Sec Combat Hostiles Destroyed 425 | . 22 43 11 . 1 30 22 64 3 3 5 . 26 24 6 13 17 6 14 32 46 27 10 Melee 3 | . . . . . . . 1 2 . . . . . . . . . . . . . . . Guns 166 | . 21 23 4 . 1 26 14 28 . 1 . . 5 3 2 . 1 2 . 10 12 10 3 Cannons 92 | . . . . . . . . 9 3 2 . . 8 10 2 6 . 2 11 8 12 12 7 AOE 127 | . . 20 7 . . 4 6 13 . . 5 . 10 9 1 7 16 2 3 7 17 . . Classes Destroyed 28 | . 6 5 1 . 1 2 2 3 . 1 . . . . . . 2 2 . 3 . . . Worker 26 | . 1 4 1 . . 3 1 4 1 . . . . 1 . . . . . 4 5 1 . Builder 33 | . 1 9 1 . . 2 2 5 . . . . . 1 . . . . 2 8 2 . . Tunneler 2 | . . . 1 . . . . 1 . . . . . . . . . . . . . . . Hauler 16 | . . 6 . . . 2 1 2 . . . . . . . . . . 1 1 2 . 1 Recycler 22 | . . 2 . . . 6 1 3 . . . . . 1 . . . . 4 1 3 1 . Minesweeper 1 | . . . . . . . . . . 1 . . . . . . . . . . . . . Mechanic 4 | . . . . . . 1 . 1 . . . . . . . . . . . . 1 1 . Operator 8 | . 2 2 . . . 2 . . . . . . . . . . . . . . . 1 1 Drone 2 | . . . . . . . . . . . . . . . . . . 2 . . . . . Watcher 13 | . 1 3 . . . 1 . . . . . . . 2 . . . . 1 2 3 . . Swarmer 86 | . 6 15 3 . . 3 4 2 . . 5 . 11 10 1 9 6 . 1 . 10 . . Cutter 3 | . . . . . . . . 3 . . . . . . . . . . . . . . . Saboteur 3 | . . . . . . . . 1 . . . . . . . . 2 . . . . . . Grunt 180 | . 16 19 8 . . 20 10 36 2 . . . 12 3 1 . 6 . 7 12 15 13 . Brawler 12 | . . 1 . . . 2 . 3 . . . . 1 . . . . . . 1 2 2 . Duelist 3 | . . . . . . 1 . 2 . . . . . . . . . . . . . . . Protector 3 | . . 1 . . . . . 2 . . . . . . . . . . . . . . . Researcher 6 | . . . . . . . . . . . . . . . . . . . . 4 . 2 . Sentry 33 | . . 7 . . . 3 3 5 1 1 . . 2 2 1 1 . . 1 . 4 . 2 Specialist 8 | . . . . . . . . 2 . . . . . 2 . . 1 . . 3 . . . Hunter 17 | . . . . . 1 1 . 2 . 1 . . . 2 2 2 . . . 2 . 3 1 Programmer 61 | . . . . . . . 4 5 . 1 . . . 3 1 1 . 3 5 11 14 8 5 Heavy 4 | . . . . . . . 1 1 . . . . . 2 . . . . . . . . . Q-Series 5 | . . . . . . . . . . . . . . . . . . . . 1 1 1 2 Behemoth 1 | . . . . . . . . . . . . . . . . . . 1 . . . . . Striker 1 | . . . . . . . . . . . . . . . . . 1 . . . . . . Executioner 1 | . . . . . . . . . . . . . . . . . 1 . . . . . . Alpha 7 1 | . . . . . . . . . . . . . . . . . . . . 1 . . . Protovariant L 1 | . . . . . . . . . . . . . . . . . . . . 1 . . . Decomposer 1 | . . . . . . . . . . . . . . . 1 . . . . . . . . Butcher 1 | . . . . . . . . . . . . . . . . . 1 . . . . . . Best Kill Streak 29 | . 6 29 4 . 1 8 9 17 2 2 5 . 11 6 3 4 10 2 7 7 8 5 2 Combat Bots Only 19 | . 6 19 3 . 1 5 8 8 2 2 5 . 11 5 3 4 10 2 5 4 6 4 2 Max Kills in Single Turn 5 | . 1 5 3 . 1 3 2 3 1 1 5 . 3 3 1 2 4 2 3 4 3 2 1 Gunslinging . | . . . . . . . . . . . . . . . . . . . . . . . . Exploded 5 | . . 5 2 . . 2 2 2 . . 5 . 3 2 1 2 4 2 2 3 3 . . Melee 1 | . . . . . . . 1 1 . . . . . . . . . . . . . . . Uniques/NPCs Destroyed . | . . . . . . . . . . . . . . . . . . . . . . . . Combat | -11 -10 -9 -9 -9 -8 -8 -7 -6 -5 -5 -5 -5 -4 -4 -4 -4 -4 -3 -3 -3 -2 -2 -2 -------- Run | Yrd Mat Mat Min Exi Min Mat Fac Fac Fac Upp Upp Zhi Pro Fac Upp Upp War Pro Res Tes Res Qua Sec Hostile Shots Fired 2799 | . 113 128 31 . 14 113 216 537 6 17 3 . 165 250 72 71 45 43 136 128 190 195 326 Missed 842 | . 23 28 10 . 6 33 84 172 1 4 . . 41 73 27 32 24 15 45 38 56 47 83 Hits 1957 | . 90 100 21 . 8 80 132 365 5 13 3 . 124 177 45 39 21 28 91 90 134 148 243 Melee 58 | . . . . . . 2 . 32 . . . . 1 . . . . . 11 11 . 1 . Projectile 1899 | . 90 100 21 . 8 78 132 333 5 13 3 . 123 177 45 39 21 28 80 79 134 147 243 AOE 58 | . . . . . . . . 1 . . . . . . . . . . . . . 11 46 Critical Strikes 101 | . 1 2 . . . 7 4 21 . 1 . . 3 10 1 1 1 . 9 5 8 7 20 Actively Blocked 7 | . . . . . . . . 4 . 1 . . 1 . . . 1 . . . . . . Part Disruptions 8 | . . . . . . . 1 1 . . . . . 2 . 1 . . 1 . . . 2 Damage Taken 33392 | . 1012 1182 261 . 118 1321 1825 5839 111 209 217 . 2100 2899 761 660 477 479 1463 1538 1672 3599 5649 Core 4286 | . 249 128 . . . 186 174 703 23 36 . . 251 373 87 74 33 15 139 261 107 443 1004 Absorbed by Shields 5032 | . . . . . . . . . 5 74 79 . 21 817 . . 106 325 568 947 1377 215 498 Redirected to Shielding 1254 | . . 5 . . . . . 333 53 69 43 . 241 205 87 . 84 62 72 . . . . Ignored by Resistances 946 | . . . . . . . 51 . . . . . 245 . . . 21 . 56 . 160 413 . Regen/Repaired (Parts) 1904 | . . . . . . . 353 . 20 . . . . . . . 225 . . 882 424 . . Core Remaining (%) 57 | 100 . . . . 68 66 75 17 . . . . 69 . . . . 49 . 69 . . . Volleys Fired 1258 | 2 87 110 22 1 11 102 70 191 5 8 4 24 58 81 47 27 14 18 53 83 87 76 77 Largest 4 | 2 2 2 2 1 2 2 3 3 3 3 1 1 3 3 3 3 2 2 3 4 4 4 4 Hottest 438 | 40 105 106 73 50 73 106 181 228 255 245 43 81 206 231 226 168 169 106 260 431 402 438 300 Shots Fired 2559 | 4 158 205 37 1 16 199 171 400 15 24 4 22 89 170 66 63 15 35 96 215 215 194 145 Gun 1651 | 4 158 191 30 1 16 195 160 279 5 8 . . 33 67 38 18 2 17 8 120 130 96 75 Cannon 778 | . . . . . . . 7 93 10 16 . 22 47 97 23 40 2 17 78 89 73 94 70 Launcher 130 | . . 14 7 . . 4 4 28 . . 4 . 9 6 5 5 11 1 10 6 12 4 . Special . | . . . . . . . . . . . . . . . . . . . . . . . . Kinetic 789 | 4 78 47 24 . 12 89 4 53 . 1 . . 52 89 17 37 2 34 29 28 22 46 121 Thermal 1242 | . 68 50 . . . 56 127 247 12 15 . . 7 45 29 21 2 . 67 167 173 144 12 Explosive 76 | . . 14 7 . . 4 4 16 . . 4 . 6 . . 5 6 1 . . 8 1 . Electromagnetic 438 | . 12 94 6 1 4 50 36 84 3 8 . 22 24 36 20 . 5 . . 6 12 3 12 Entropic 14 | . . . . . . . . . . . . . . . . . . . . 14 . . . Robot Hit Streak 72 | 1 10 10 6 . 7 33 15 72 32 38 . 15 8 24 15 17 10 17 12 24 24 34 18 Robot Miss Streak 7 | 1 7 3 2 . 1 2 3 6 . 1 . 1 3 3 2 3 . 2 4 2 2 2 3 Penetration Max 3 | . . . . . . . . 3 . . . . 1 . . . . . . 1 1 . 1 Secondary Targets 15 | . 3 . 1 . . 4 2 3 . . . . . 1 . . . . . . . . 1 Max Gunslinging Chain 1 | . 1 . 1 . . 1 1 1 . . . . . 1 . . . . . . . . 1 Shots Hit Robots 1804 | 2 89 129 23 4 12 159 126 329 13 18 . 20 59 125 46 42 9 24 61 150 123 152 89 Core Hits 1054 | 1 43 89 18 . 3 87 57 181 7 8 6 17 47 57 19 21 38 10 36 99 107 67 36 Critical Kills 41 | . . 1 . . . . . 9 . . . . . 1 . . . 1 2 6 8 7 6 Critical Parts Destroyed 53 | . . . . . . . . 11 . . . . . 2 . . . . . 3 3 16 18 Critical Strikes 182 | . 4 3 . . . 6 4 39 . 1 . . 1 5 2 2 1 2 4 20 16 34 38 Burn 51 | . 4 1 . . . 6 4 16 . . . . . . 1 . . . . 11 3 5 . Meltdown 13 | . . . . . . . . 1 . . . . . . . . . . 2 3 5 2 . Destroy 93 | . . 1 . . . . . 19 . . . . . 3 . . . 1 . 3 8 23 35 Blast 17 | . . . . . . . . . . 1 . . 1 2 1 2 1 1 2 . . 4 2 Corrupt 4 | . . 1 . . . . . 2 . . . . . . . . . . . . . . 1 Sever 1 | . . . . . . . . 1 . . . . . . . . . . . . . . . Detonate 3 | . . . . . . . . . . . . . . . . . . . . 3 . . . Melee Attacks 33 | . . . . 4 . . 3 17 6 . . . . . . . 1 . . . . 2 . Kinetic 2 | . . . . . . . . . . . . . . . . . . . . . . 2 . Impact . | . . . . . . . . . . . . . . . . . . . . . . . . Slashing 26 | . . . . . . . 3 17 6 . . . . . . . . . . . . . . Piercing . | . . . . . . . . . . . . . . . . . . . . . . . . Entropic 1 | . . . . . . . . . . . . . . . . . 1 . . . . . . Sneak Attacks 5 | . . . . 4 . . . . 1 . . . . . . . . . . . . . . Combat Hostiles . | . . . . . . . . . . . . . . . . . . . . . . . . Follow-up Attacks . | . . . . . . . . . . . . . . . . . . . . . . . . Damage Inflicted 71171 | 16 1112 4401 1121 . 155 3127 2876 10191 412 469 394 280 3429 4640 1257 1600 4184 1573 3549 7723 8819 7389 2454 Guns 23456 | 16 1112 2222 340 . 155 2666 2030 4383 46 89 . . 631 1382 539 163 27 315 101 2512 2096 2114 517 Cannons 24502 | . . . . . . . 152 1942 278 380 . 280 1075 2704 468 911 162 1030 2400 3386 2876 4521 1937 Explosions 22673 | . . 2179 781 . . 461 622 3556 . . 394 . 1723 554 250 526 3995 228 1037 1825 3847 695 . Melee 529 | . . . . . . . 72 310 88 . . . . . . . . . . . . 59 . Ramming 11 | . . . . . . . . . . . . . . . . . . . 11 . . . . Kinetic 16246 | 16 520 513 265 . 137 1138 62 588 . 38 . . 1177 2450 326 692 162 1345 1335 1255 157 2340 1730 Thermal 30472 | . 522 700 169 . . 1006 1822 4650 301 342 . . 194 1305 577 382 1108 . 2203 5115 5213 4354 509 Explosive 13283 | . . 1987 612 . . 302 531 2251 . . 394 . 1404 . . 526 2340 228 . . 2595 113 . Electromagnetic 10144 | . 70 1201 75 . 18 681 389 2392 23 89 . 280 654 885 354 . 574 . . 808 854 582 215 Impact . | . . . . . . . . . . . . . . . . . . . . . . . . Slashing 470 | . . . . . . . 72 310 88 . . . . . . . . . . . . . . Piercing . | . . . . . . . . . . . . . . . . . . . . . . . . Entropic 545 | . . . . . . . . . . . . . . . . . . . . 545 . . . Highest Corruption 19 | . . . . . . . 2 19 . . 8 8 14 9 9 4 6 5 1 9 . . 7 Average Corruption 3 | . . . . . . . 1 4 . . 8 6 6 6 2 3 3 1 1 3 . . 5 Corruption Purged 17 | . . . . . . . 2 5 . . . 3 . . 7 . . . . . . . . Corruption Blocked 27 | . . . . . . . . . . . . . . . . . . . . . 13 7 7 Effects 216 | . . . . . . . 5 43 . . 1 10 25 29 19 23 1 10 2 45 . . 3 Message Errors 52 | . . . . . . . . 12 . . . 2 9 10 3 4 . 1 . 10 . . 1 Matter Fused 56 | . . . . . . . 3 10 . . 1 2 8 5 6 5 . 4 . 11 . . 1 Heat Flow Errors 23 | . . . . . . . . 4 . . . . 2 4 3 3 . 1 . 6 . . . Energy Discharges 33 | . . . . . . . . 6 . . . 2 3 4 3 3 1 4 . 6 . . 1 Parts Rejected 2 | . . . . . . . . 1 . . . . . . . . . . . 1 . . . Parts Fused 2 | . . . . . . . . . . . . . . . . 1 . . . 1 . . . Data Loss (minor) 20 | . . . . . . . 2 2 . . . 1 1 3 3 3 . . 1 4 . . . Data Loss (major) 7 | . . . . . . . . 2 . . . 1 . 1 . 1 . . . 2 . . . Misfires 5 | . . . . . . . . 1 . . . . . . . 2 . . . 2 . . . Alerts 8 | . . . . . . . . 1 . . . . 1 2 1 1 . . . 2 . . . Weapon Failures 8 | . . . . . . . . 4 . . . 2 1 . . . . . 1 . . . . Overload Shots . | . . . . . . . . . . . . . . . . . . . . . . . . Overflow Damage 2626 | . . 11 . . . 17 15 105 48 12 . . 24 57 20 10 282 84 113 643 383 379 423 Projectiles 1766 | . . . . . . . . 2 . 12 . . 24 43 18 9 . 84 78 492 212 369 423 Explosions 782 | . . 11 . . . 17 . 88 . . . . . 14 2 1 282 . 35 151 171 10 . Melee 78 | . . . . . . . 15 15 48 . . . . . . . . . . . . . . Knockbacks 53 | . . . . . . . . . . 1 . . 5 18 1 3 . 2 5 5 . 8 5 Impact . | . . . . . . . . . . . . . . . . . . . . . . . . Kinetic 50 | . . . . . . . . . . 1 . . 4 17 1 3 . 1 5 5 . 8 5 Secondary 3 | . . . . . . . . . . . . . 1 1 . . . 1 . . . . . Self-Inflicted Damage 613 | . . . 20 . . 68 30 150 . . 10 . 35 78 . 99 . . 5 111 7 . . Shots 20 | . . . 1 . . 2 1 3 . . 1 . 1 5 . 2 . . . 3 1 . . Rammed 1 | . . . . . . . . . . . . . . . . . . . 1 . . . . Targets Rammed 1 | . . . . . . . . . . . . . . . . . . . 1 . . . . Kicked . | . . . . . . . . . . . . . . . . . . . . . . . . Crushed . | . . . . . . . . . . . . . . . . . . . . . . . . Highest Temperature 719 | . 380 376 . . . 162 258 575 197 311 . 300 364 719 171 211 2 94 387 333 126 . 16 Average Temperature 105 | . 85 63 . . . 38 59 127 73 118 . 124 166 144 46 91 1 62 114 157 29 . 12 Received Heat Transfer 5290 | . 471 414 99 . . 738 396 1392 24 30 . . 405 367 9 27 57 33 124 106 162 247 189 Effects 40 | . 1 2 . . . . . 10 . 2 . 3 6 10 . . . . 3 3 . . . Shutdowns 9 | . 1 1 . . . . . 3 . . . . 1 2 . . . . 1 . . . . Energy Bleed 5 | . . 1 . . . . . . . 2 . . . 1 . . . . 1 . . . . Interference 13 | . . . . . . . . 2 . . . 3 5 . . . . . . 3 . . . Matter Decay 2 | . . . . . . . . 1 . . . . . 1 . . . . . . . . . Short Circuit 1 | . . . . . . . . . . . . . . 1 . . . . . . . . . Damage (minor) 3 | . . . . . . . . 1 . . . . . 1 . . . . 1 . . . . Damage (major) 7 | . . . . . . . . 3 . . . . . 4 . . . . . . . . . Siege Activations . | . . . . . . . . . . . . . . . . . . . . . . . . Martial Activations . | . . . . . . . . . . . . . . . . . . . . . . . . Shielding Activations . | . . . . . . . . . . . . . . . . . . . . . . . . Robots Disrupted 2 | . . . . . . . 1 1 . . . . . . . . . . . . . . . Combat Hostiles 2 | . . . . . . . 1 1 . . . . . . . . . . . . . . . Robots Corrupted 24 | . . . . . . . . 6 . . . 2 3 2 1 . . . . 4 2 4 . Combat Hostiles 24 | . . . . . . . . 6 . . . 2 3 2 1 . . . . 4 2 4 . Parts Fried 58 | . . 2 . . . 3 3 12 . 1 . 1 6 3 3 . . . . 10 5 9 . Impact Corruptions . | . . . . . . . . . . . . . . . . . . . . . . . . Robots Melted 21 | . 1 . . . . . 1 6 . . . . . . . . . . 2 4 5 2 . Combat Hostiles 15 | . 1 . . . . . 1 6 . . . . . . . . . . . 3 3 1 . Parts Melted 114 | . 4 1 . . . 2 10 29 2 . . . . . . 1 1 . 9 22 28 5 . Heat Transferred 44181 | . 1619 1421 200 . . 2457 3874 10165 420 444 . . 198 1619 925 481 849 . 3043 6863 4861 4668 74 Parts Sabotaged . | . . . . . . . . . . . . . . . . . . . . . . . . Parts Stolen . | . . . . . . . . . . . . . . . . . . . . . . . . Parts Stripped . | . . . . . . . . . . . . . . . . . . . . . . . . Power Chain Reactions 22 | . . 5 . . . 1 1 2 . . . . 1 4 . . 6 . . 1 1 . . Alert | -11 -10 -9 -9 -9 -8 -8 -7 -6 -5 -5 -5 -5 -4 -4 -4 -4 -4 -3 -3 -3 -2 -2 -2 ------- Run | Yrd Mat Mat Min Exi Min Mat Fac Fac Fac Upp Upp Zhi Pro Fac Upp Upp War Pro Res Tes Res Qua Sec Maximum Alert Level 4 | . 1 3 2 . . 2 2 4 2 . . . . 2 . . . . 1 2 4 3 2 Low Security (%) 28 | 100 57 10 . . 100 46 22 . . . . . . 17 . . . . 94 41 12 . 67 Level 1 30 | . 42 1 85 . . 13 52 17 12 . . . . 72 . . . . 5 26 57 . 27 Level 2 27 | . . 14 14 . . 40 25 55 87 . . . . 10 . . . . . 31 7 71 5 Level 3 12 | . . 73 . . . . . 18 . . . . . . . . . . . . 20 28 . Level 4 1 | . . . . . . . . 8 . . . . . . . . . . . . 2 . . Level 5 . | . . . . . . . . . . . . . . . . . . . . . . . . High Security . | . . . . . . . . . . . . . . . . . . . . . . . . Max Security . | . . . . . . . . . . . . . . . . . . . . . . . . Peak Influence 1263 | . 372 930 443 . 30 458 508 1263 617 . . . . 521 . . . . 206 510 1167 800 443 Initial 650 | . . 133 348 . . . 205 242 617 . . . . 144 . . . . 12 86 283 650 391 Average 376 | . 166 702 335 . 2 251 308 613 484 . . . . 287 . . . . 80 250 444 683 153 Influence Increases 13794 | . 655 1354 359 . 30 941 885 2023 126 85 110 15 540 838 145 300 507 120 452 1212 1710 993 394 Destroy 0b10 Robot/C 8540 | . 440 840 220 . 20 600 440 1240 60 60 100 . 520 480 120 260 360 80 280 720 920 580 200 Destroy 0b10 Robot/NC 670 | . 25 135 15 . . 85 25 90 5 5 . 15 . 25 5 . . 10 40 80 80 20 10 Destroy Leader 1628 | . 102 198 40 . 10 136 122 284 10 20 10 . 20 114 20 40 . 30 44 106 180 70 72 Allied During Kill 12 | . . . . . . . . . . . . . . . . . 12 . . . . . . Successful Hack 441 | . 42 39 6 . . 12 67 38 26 . . . . 10 . . . . 39 28 38 68 28 Disable Machine 525 | . 30 45 15 . . 30 . 75 . . . . . 15 . . . . 15 150 15 90 45 Anti-Garrison Action 200 | . . . . . . . 200 . . . . . . . . . . . . . . . . Destroy Structure 1118 | . 1 82 63 . . 48 16 101 10 . . . . 74 . . . . 34 98 462 90 39 Lose Combat Pursuer 660 | . 15 15 . . . 30 15 195 15 . . . . 120 . . 135 . . 30 15 75 . Influence Decreases 13794 | . 339 775 925 329 30 488 842 1258 978 494 110 15 310 840 373 300 147 462 316 862 1057 1453 1091 Entered New Map 3996 | . . 183 547 329 . . 248 254 644 152 . . . 86 85 . . 360 6 68 221 507 306 Time Decay 7790 | . 269 542 368 . 30 448 534 614 334 342 110 15 230 534 268 272 107 102 260 614 666 586 545 Lost Part 1538 | . 70 50 10 . . 40 60 390 . . . . 80 220 20 28 20 . 50 30 20 210 240 Lost Ally 20 | . . . . . . . . . . . . . . . . . 20 . . . . . . Purge Threat 450 | . . . . . . . . . . . . . . . . . . . . 150 150 150 . Squads Dispatched 100 | . 6 6 1 . . 6 9 24 3 . . . 1 7 . . . . 5 8 12 8 4 Investigation 25 | . 5 3 1 . . 3 3 4 2 . . . 1 . . . . . 1 . 2 . . Extermination 31 | . . . . . . . 3 4 1 . . . . 2 . . . . 2 6 6 3 4 Reinforcement 26 | . 1 2 . . . 3 2 9 . . . . . 1 . . . . 2 2 1 3 . Assault 11 | . . 1 . . . . . 4 . . . . . 1 . . . . . . 3 2 . Garrison 7 | . . . . . . . 1 3 . . . . . 3 . . . . . . . . . Intercept . | . . . . . . . . . . . . . . . . . . . . . . . . Searches Triggered . | . . . . . . . . . . . . . . . . . . . . . . . . Construction Impeded 5 | . . . . . . . 1 4 . . . . . . . . . . . . . . . Haulers Reinforced 3 | . . . . . . . . 2 . . . . . . . . . . . . 1 . . Active Scanning Responses . | . . . . . . . . . . . . . . . . . . . . . . . . Cargo Convoy Interrupts . | . . . . . . . . . . . . . . . . . . . . . . . . Stealth | -11 -10 -9 -9 -9 -8 -8 -7 -6 -5 -5 -5 -5 -4 -4 -4 -4 -4 -3 -3 -3 -2 -2 -2 --------- Run | Yrd Mat Mat Min Exi Min Mat Fac Fac Fac Upp Upp Zhi Pro Fac Upp Upp War Pro Res Tes Res Qua Sec Distress Signals 21 | . 1 2 . . . 4 . 3 . . . . . 2 . . . . 2 2 4 . 1 Communications Jammed 209 | . . . . . . . 5 21 . . . . . 61 . . . . 18 6 . 88 10 Distress Signals 189 | . . . . . . . . 17 . . . . . 50 . . . . 18 6 . 88 10 Times Spotted 640 | . 31 58 11 . 1 42 29 89 5 3 5 . 26 35 6 11 64 3 31 49 66 55 20 Peak Tracking Total 16 | . 5 8 3 9 1 6 9 6 2 3 5 . 6 6 3 3 16 2 11 4 8 5 5 Tactical Retreats 32 | . 1 1 . . . 2 1 10 1 . . . . 3 . . 5 . . 2 1 5 . Traps | -11 -10 -9 -9 -9 -8 -8 -7 -6 -5 -5 -5 -5 -4 -4 -4 -4 -4 -3 -3 -3 -2 -2 -2 ------- Run | Yrd Mat Mat Min Exi Min Mat Fac Fac Fac Upp Upp Zhi Pro Fac Upp Upp War Pro Res Tes Res Qua Sec Traps Triggered 19 | . 5 3 . . . 1 1 1 1 . . . . . . . . . . 3 3 1 . Indirectly 3 | . . 1 . . . . . . . . . . . . . . . . . 2 . . . Trap Hack Attempts . | . . . . . . . . . . . . . . . . . . . . . . . . Triggered . | . . . . . . . . . . . . . . . . . . . . . . . . Disarmed . | . . . . . . . . . . . . . . . . . . . . . . . . Reprogrammed . | . . . . . . . . . . . . . . . . . . . . . . . . Reused . | . . . . . . . . . . . . . . . . . . . . . . . . Traps Extracted . | . . . . . . . . . . . . . . . . . . . . . . . . Installed . | . . . . . . . . . . . . . . . . . . . . . . . . Triggered . | . . . . . . . . . . . . . . . . . . . . . . . . Machines | -11 -10 -9 -9 -9 -8 -8 -7 -6 -5 -5 -5 -5 -4 -4 -4 -4 -4 -3 -3 -3 -2 -2 -2 ---------- Run | Yrd Mat Mat Min Exi Min Mat Fac Fac Fac Upp Upp Zhi Pro Fac Upp Upp War Pro Res Tes Res Qua Sec Machines Disabled 42 | . 2 3 1 1 . 2 . 5 . . . . 4 1 . . 1 . 1 11 1 6 3 Max in Single Turn 2 | . 1 1 1 1 . 1 . 2 . . . . 1 1 . . 1 . 1 1 1 1 1 Garrison Access 6 | . . . . . . 1 2 1 . . . . . . . . . . . . 2 . . Machines Repaired . | . . . . . . . . . . . . . . . . . . . . . . . . Machines Dismantled . | . . . . . . . . . . . . . . . . . . . . . . . . Machines Sabotaged . | . . . . . . . . . . . . . . . . . . . . . . . . Overloaded Fab Kills . | . . . . . . . . . . . . . . . . . . . . . . . . Hacking | -11 -10 -9 -9 -9 -8 -8 -7 -6 -5 -5 -5 -5 -4 -4 -4 -4 -4 -3 -3 -3 -2 -2 -2 --------- Run | Yrd Mat Mat Min Exi Min Mat Fac Fac Fac Upp Upp Zhi Pro Fac Upp Upp War Pro Res Tes Res Qua Sec Machines Accessed 94 | . 5 6 1 2 . 5 11 8 5 1 1 4 1 3 . . 1 . 5 9 10 9 7 Terminals 51 | . 5 6 1 . . 3 3 4 3 . . . 1 2 . . . . 3 4 3 7 6 Fabricators 7 | . . . . . . . 3 3 . . . . . . . . . . 1 . . . . Repair Stations 7 | . . . . . . . 1 . 1 . . . . . . . . . . 2 3 . . Recycling Units 2 | . . . . . . . . . . . . . . . . . . . 1 . 1 . . Scanalyzers 12 | . . . . . . 1 2 . 1 . . . . 1 . . . . . 3 1 2 1 Garrison Access 6 | . . . . . . 1 2 1 . . . . . . . . . . . . 2 . . Total Hacks 301 | . 21 20 4 3 . 25 40 29 11 1 1 17 7 15 . . 1 . 15 33 26 19 13 Successful 184 | . 12 13 1 3 . 11 25 14 5 1 1 17 7 12 . . 1 . 7 21 13 15 5 Failed 116 | . 9 7 3 . . 13 15 15 6 . . . . 3 . . . . 8 12 13 4 8 Catastrophic 23 | . 2 . 1 . . 4 4 4 1 . . . . 3 . . . . . 2 1 1 . Database Lockouts 1 | . . . . . . 1 . . . . . . . . . . . . . . . . . Manual 104 | . 21 14 4 1 . 15 8 15 4 . . . . . . . . . 5 4 11 2 . Terminals 151 | . 21 20 4 . . 15 6 10 4 . . . 7 6 . . . . 10 11 10 15 12 Fabricators 29 | . . . . . . . 8 18 . . . . . . . . . . 3 . . . . Repair Stations 27 | . . . . . . . 3 . 4 . . . . . . . . . . 13 7 . . Recycling Units 4 | . . . . . . . . . . . . . . . . . . . 2 . 2 . . Scanalyzers 52 | . . . . . . 6 18 . 3 . . . . 9 . . . . . 9 2 4 1 Garrison Access 15 | . . . . . . 4 5 1 . . . . . . . . . . . . 5 . . Terminal Hacks 77 | . 9 9 1 3 . 3 . . . 1 1 17 7 3 . . 1 . 2 2 3 10 5 Record 16 | . . . . 2 . . . . . . . 5 7 . . . . . . . . 2 . Part Schematic 10 | . 2 1 . . . . . . . . . 4 . 1 . . . . . . . 2 . Robot Analysis 22 | . 7 6 1 . . 3 . . . . . 4 . . . . . . . . . 1 . Prototype ID Bank 6 | . . . . . . . . . . . . 4 . . . . . . 1 . . 1 . Open Door 5 | . . . . . . . . . . 1 1 . . . . . 1 . . . . . 2 Level Access Points 1 | . . . . . . . . . . . . . . . . . . . . . . . 1 Branch Access Points 2 | . . . . . . . . . . . . . . . . . . . 1 . 1 . . Terminal Index 5 | . . 1 . . . . . . . . . . . 1 . . . . . . 1 1 1 Repair Station Index 1 | . . . . . . . . . . . . . . . . . . . . . . 1 . Alert Level 1 | . . . . . . . . . . . . . . . . . . . . . . 1 . Unreport Threat 3 | . . . . . . . . . . . . . . . . . . . . 1 1 1 . Zone Layout 3 | . . 1 . . . . . . . . . . . 1 . . . . . 1 . . . Proto ID Catalog 1 | . . . . 1 . . . . . . . . . . . . . . . . . . . Activate Exoskeleton 1 | . . . . . . . . . . . . . . . . . . . . . . . 1 Fabricator Hacks 11 | . . . . . . . 4 5 . . . . . . . . . . 2 . . . . Network Status 2 | . . . . . . . 1 1 . . . . . . . . . . . . . . . Load Schematic 5 | . . . . . . . 1 3 . . . . . . . . . . 1 . . . . Build 4 | . . . . . . . 2 1 . . . . . . . . . . 1 . . . . Repair Station Hacks 21 | . . . . . . . 2 . 2 . . . . . . . . . . 11 6 . . Scan Component 11 | . . . . . . . 1 . 1 . . . . . . . . . . 6 3 . . Repair 10 | . . . . . . . 1 . 1 . . . . . . . . . . 5 3 . . Recycling Unit Hacks . | . . . . . . . . . . . . . . . . . . . . . . . . Scanalyzer 43 | . . . . . . 6 14 . 3 . . . . 9 . . . . . 6 1 4 . Insert Component 22 | . . . . . . 3 7 . 1 . . . . 3 . . . . . 4 1 3 . Analyze 18 | . . . . . . 3 6 . 2 . . . . 5 . . . . . 2 . . . Retrieve Study 3 | . . . . . . . 1 . . . . . . 1 . . . . . . . 1 . Garrison Access Hacks 5 | . . . . . . 1 1 1 . . . . . . . . . . . . 2 . . Seal Access 5 | . . . . . . 1 1 1 . . . . . . . . . . . . 2 . . Unauthorized Hacks 27 | . 3 4 . . . 1 4 8 . . . . . . . . . . 3 2 1 1 . Terminals 19 | . 3 4 . . . 1 2 4 . . . . . . . . . . 2 2 . 1 . Botnet 18 | . 3 4 . . . 1 2 3 . . . . . . . . . . 2 2 . 1 . Operators 1 | . . . . . . . . 1 . . . . . . . . . . . . . . . Fabricators 4 | . . . . . . . . 4 . . . . . . . . . . . . . . . Report 1 | . . . . . . . . 1 . . . . . . . . . . . . . . . Prioritize 1 | . . . . . . . . 1 . . . . . . . . . . . . . . . Liberate 1 | . . . . . . . . 1 . . . . . . . . . . . . . . . Haulers 1 | . . . . . . . . 1 . . . . . . . . . . . . . . . Repair Stations 1 | . . . . . . . 1 . . . . . . . . . . . . . . . . Mechanics 1 | . . . . . . . 1 . . . . . . . . . . . . . . . . Recycling Units 2 | . . . . . . . . . . . . . . . . . . . 1 . 1 . . Reject 1 | . . . . . . . . . . . . . . . . . . . . . 1 . . Mask 1 | . . . . . . . . . . . . . . . . . . . 1 . . . . Scanalyzers . | . . . . . . . . . . . . . . . . . . . . . . . . Garrison Access 1 | . . . . . . . 1 . . . . . . . . . . . . . . . . Jam 1 | . . . . . . . 1 . . . . . . . . . . . . . . . . Data Cores Recovered 2 | . . . . . . . . . . . . . . . . . . . . . . 1 1 Used 1 | . . . . . . . . . . . . . . . . . . . . . . 1 . Hacking Detections 79 | . 5 6 1 . . 5 10 7 5 . . . 1 3 . . . . 5 9 10 9 3 Full Trace Events 21 | . 5 2 1 . . 2 2 4 2 . . . 1 . . . . . 1 . 1 . . Feedback Events 1 | . . . . . . . . 1 . . . . . . . . . . . . . . . Corruption 1 | . . . . . . . . 1 . . . . . . . . . . . . . . . Feedback Blocked . | . . . . . . . . . . . . . . . . . . . . . . . . Robot Schematics Acquired 7 | . . . . . . . . . . . . . . . . . . . . 5 . 2 . Robots Built . | . . . . . . . . . . . . . . . . . . . . . . . . Authchips . | . . . . . . . . . . . . . . . . . . . . . . . . Time . | . . . . . . . . . . . . . . . . . . . . . . . . Total Robot Build Rating . | . . . . . . . . . . . . . . . . . . . . . . . . Part Schematics Acquired 39 | . 1 1 . . . 3 6 . 1 . . 4 . 3 . . . . . 12 . 8 . Parts Built 8 | . . . . . . . 4 2 . . . . . . . . . . 2 . . . . Authchips . | . . . . . . . . . . . . . . . . . . . . . . . . Time 175 | . . . . . . . 94 42 . . . . . . . . . . 39 . . . . Total Part Build Rating 42 | . . . . . . . 20 8 . . . . . . . . . . 14 . . . . Part Studies Acquired 3 | . . . . . . . 1 . . . . . . 1 . . . . . . . 1 . Parts Repaired 10 | . . . . . . . 1 . 1 . . . . . . . . . . 5 3 . . Time 554 | . . . . . . . 26 . 25 . . . . . . . . . . 365 138 . . Parts Recycled . | . . . . . . . . . . . . . . . . . . . . . . . . Recycled Matter . | . . . . . . . . . . . . . . . . . . . . . . . . Retrieved Matter . | . . . . . . . . . . . . . . . . . . . . . . . . Retrieved Components . | . . . . . . . . . . . . . . . . . . . . . . . . Parts Scanalyzed 15 | . . . . . . 3 7 . 1 . . . . 2 . . . . . 2 . . . Part Schematics Acquired 14 | . . . . . . 3 6 . 1 . . . . 2 . . . . . 2 . . . Parts Damaged 1 | . . . . . . . 1 . . . . . . . . . . . . . . . . Bothacking | -11 -10 -9 -9 -9 -8 -8 -7 -6 -5 -5 -5 -5 -4 -4 -4 -4 -4 -3 -3 -3 -2 -2 -2 ------------ Run | Yrd Mat Mat Min Exi Min Mat Fac Fac Fac Upp Upp Zhi Pro Fac Upp Upp War Pro Res Tes Res Qua Sec Used RIF Installer . | . . . . . . . . . . . . . . . . . . . . . . . . Robots Hacked 4 | . . . . 4 . . . . . . . . . . . . . . . . . . . Non-combat 3 | . . . . 3 . . . . . . . . . . . . . . . . . . . Combat 1 | . . . . 1 . . . . . . . . . . . . . . . . . . . Robot Hacks Applied 4 | . . . . 4 . . . . . . . . . . . . . . . . . . . parse_system 4 | . . . . 4 . . . . . . . . . . . . . . . . . . . Relay Couplers Released 5 | . . . . . . . . . . . . . . . . . . . . . 1 . 4 Machine Destruction 1 | . . . . . . . . . . . . . . . . . . . . . 1 . . Programmers 4 | . . . . . . . . . . . . . . . . . . . . . . . 4 Fabnet Peak Effective % . | . . . . . . . . . . . . . . . . . . . . . . . . Robots Rewired . | . . . . . . . . . . . . . . . . . . . . . . . . Allies Hacked . | . . . . . . . . . . . . . . . . . . . . . . . . Hacks Repelled . | . . . . . . . . . . . . . . . . . . . . . . . . Allies | -11 -10 -9 -9 -9 -8 -8 -7 -6 -5 -5 -5 -5 -4 -4 -4 -4 -4 -3 -3 -3 -2 -2 -2 -------- Run | Yrd Mat Mat Min Exi Min Mat Fac Fac Fac Upp Upp Zhi Pro Fac Upp Upp War Pro Res Tes Res Qua Sec Total Allies 1 | . . . . . . . . . . . . . . . . . 1 . . . . . . Largest Group 1 | . . . . . . . . . . . . . . . . . 1 . . . . . . Highest-Rated Group 86 | . . . . . . . . . . . . . . . . . 86 . . . . . . Highest-Rated Ally 86 | . . . . . . . . . . . . . . . . . 86 . . . . . . Total Orders . | . . . . . . . . . . . . . . . . . . . . . . . . Ally Attacks 4 | . . . . . . . . . . . . . . . . . 4 . . . . . . Total Damage 271 | . . . . . . . . . . . . . . . . . 271 . . . . . . Kills 1 | . . . . . . . . . . . . . . . . . 1 . . . . . . Allies Corrupted . | . . . . . . . . . . . . . . . . . . . . . . . . Allies Melted . | . . . . . . . . . . . . . . . . . . . . . . . . Intel | -11 -10 -9 -9 -9 -8 -8 -7 -6 -5 -5 -5 -5 -4 -4 -4 -4 -4 -3 -3 -3 -2 -2 -2 ------- Run | Yrd Mat Mat Min Exi Min Mat Fac Fac Fac Upp Upp Zhi Pro Fac Upp Upp War Pro Res Tes Res Qua Sec Active Infowar (turns) 21878 | . . . . . . 7 758 1268 748 942 748 383 783 1500 1130 1152 1379 1149 934 2750 2559 1836 1852 Optics 14171 | . . . . . . . . . . . . . . 495 1130 1152 944 1149 934 2750 2559 1836 1222 Sensors 7899 | . . . . . . . . 425 627 937 710 . . 882 885 465 . . . . 1610 742 616 Terrain 2439 | . . . . . . . . 114 399 935 748 243 . . . . . . . . . . . Machine Analysis 4867 | . . . . . . 7 611 . . . . . . 1308 1130 1152 659 . . . . . . Jamming 15235 | . . . . . . . 147 729 748 942 748 383 783 1482 1130 1152 481 . 168 2067 1544 1235 1496 Robot Analysis Total 22 | . 7 6 1 . . 3 . . . . . 4 . . . . . . . . . 1 . Derelict Logs Recovered 5 | . . . 2 . . . . . . . 1 . 1 . . 1 . . . . . . . Drone Launches . | . . . . . . . . . . . . . . . . . . . . . . . . Drone Recoveries . | . . . . . . . . . . . . . . . . . . . . . . . . Exploration | -11 -10 -9 -9 -9 -8 -8 -7 -6 -5 -5 -5 -5 -4 -4 -4 -4 -4 -3 -3 -3 -2 -2 -2 ------------- Run | Yrd Mat Mat Min Exi Min Mat Fac Fac Fac Upp Upp Zhi Pro Fac Upp Upp War Pro Res Tes Res Qua Sec Turns Passed 29302 | 66 863 1554 851 634 375 1237 1519 2033 748 1007 748 383 783 1500 1130 1152 1612 1149 934 2750 2559 1836 1879 Spaces Moved 15085 | 56 498 931 511 418 243 551 766 870 428 634 485 207 397 720 624 659 899 563 410 1269 1159 877 910 Core 15 | 3 . . . . . . . . . . . . . . . . . . . . . . 12 Treads . | . . . . . . . . . . . . . . . . . . . . . . . . Legs . | . . . . . . . . . . . . . . . . . . . . . . . . Wheels 15070 | 53 498 931 511 418 243 551 766 870 428 634 485 207 397 720 624 659 899 563 410 1269 1159 877 898 Hover . | . . . . . . . . . . . . . . . . . . . . . . . . Flight . | . . . . . . . . . . . . . . . . . . . . . . . . Fastest Speed 50 | 50 90 95 125 140 140 135 115 135 135 135 150 135 150 140 140 140 140 180 120 160 140 130 50 Average Speed 156 | 89 105 116 151 149 142 153 151 139 149 149 150 144 154 155 159 158 160 189 180 177 181 166 168 Slowest Speed 300 | 100 130 170 155 155 155 155 160 150 150 150 150 150 165 220 160 160 200 200 200 280 185 185 300 Overloaded Moves . | . . . . . . . . . . . . . . . . . . . . . . . . Propulsion Burnouts . | . . . . . . . . . . . . . . . . . . . . . . . . Robots Hopped . | . . . . . . . . . . . . . . . . . . . . . . . . Potential Cave-ins 42 | . . . . . . . . . . . . . . . 1 . 2 . . . . . 39 Cave-ins Triggered 2 | . . . . . . . . . . . 1 . . . . . . . . . . . 1 Teleports 1 | . . . . . . . . . . . . . . . . . . . . . . . 1 Exploration Rate (%) 52 | 4 42 72 81 70 56 41 22 23 12 64 70 60 57 14 65 82 91 70 17 91 32 73 46 Regions Visited 23 Branch Regions 14 Pre-discovered Areas 6 | . . . 1 1 . . . . . . 1 3 . . . . . . . . . . . Known Exits Taken 15 | . . . . . . 1 . 1 1 1 1 . 1 1 1 1 1 1 1 1 1 1 . Unknown Exits Taken 8 | 1 1 1 1 1 1 . 1 . . . . 1 . . . . . . . . . . . Scrap Searched 14 | . . . 3 . 1 . . . . 1 1 . 3 . 1 2 . 2 . . . . . Spaces Dug 213 | . . . 39 . . . 1 8 5 . 53 . . 8 2 38 . . 5 . 20 31 3 Terrain Destroyed 1098 | . . 94 83 . . 51 13 111 5 1 60 . 71 33 7 71 86 67 16 61 185 59 24 Melee 6 | . . . . . . . 1 . 5 . . . . . . . . . . . . . . Projectile 182 | . . . . . . . . 8 . 1 . . 13 21 7 9 . 4 5 31 35 27 21 AOE 903 | . . 94 83 . . 51 12 103 . . 60 . 58 12 . 62 86 63 11 30 149 29 . Terrain Rammed . | . . . . . . . . . . . . . . . . . . . . . . . . Walls Destroyed . | . . . . . . . . . . . . . . . . . . . . . . . . Machines Disabled . | . . . . . . . . . . . . . . . . . . . . . . . . Actions | -11 -10 -9 -9 -9 -8 -8 -7 -6 -5 -5 -5 -5 -4 -4 -4 -4 -4 -3 -3 -3 -2 -2 -2 --------- Run | Yrd Mat Mat Min Exi Min Mat Fac Fac Fac Upp Upp Zhi Pro Fac Upp Upp War Pro Res Tes Res Qua Sec Total 18487 | 65 677 1198 548 424 255 748 980 1286 512 676 501 267 496 978 698 714 1060 611 521 1598 1451 1099 1124 Wait 780 | . 42 53 5 . . 34 40 68 42 9 10 6 15 94 1 14 73 15 10 65 83 73 28 Move 15061 | 55 497 930 510 417 242 550 765 869 427 633 484 206 396 719 623 658 898 562 409 1268 1158 876 909 Hop . | . . . . . . . . . . . . . . . . . . . . . . . . Pick Up 354 | 3 20 20 3 . 1 16 36 35 5 6 . 6 11 18 11 4 24 3 13 42 37 17 23 Fast Attach 195 | 5 13 11 . . . 2 10 23 6 2 . 9 1 18 2 2 4 3 7 24 12 11 30 Attach 196 | . 5 6 1 . 1 6 12 33 2 1 . 3 8 16 5 3 7 3 5 26 8 19 26 Detach 25 | . 1 . . . . 1 . 2 . . . . . 2 . . 3 . 2 4 3 5 2 Swap 249 | . 5 33 6 2 . 19 17 22 10 9 2 2 7 12 5 4 12 3 6 36 28 7 2 Drop 305 | . 7 35 1 . . 18 27 8 9 8 1 11 . 18 4 2 24 4 15 50 27 10 26 Fire 1258 | 2 87 110 22 1 11 102 70 191 5 8 4 24 58 81 47 27 14 18 53 83 87 76 77 Melee 33 | . . . . 4 . . 3 17 6 . . . . . . . 1 . . . . 2 . Ram 1 | . . . . . . . . . . . . . . . . . . . 1 . . . . Kick . | . . . . . . . . . . . . . . . . . . . . . . . . Crush . | . . . . . . . . . . . . . . . . . . . . . . . . Escape Stasis 20 | . . . . . . . . 8 . . . . . . . . . . . . 8 3 1 Rewire 10 | . . . . . . . . 10 . . . . . . . . . . . . . . . Trap . | . . . . . . . . . . . . . . . . . . . . . . . . Miscellaneous . | . . . . . . . . . . . . . . . . . . . . . . . . Route ------- -11/Scrapyard -10/Materials (discovered 3 exits: *Mat x2 / [*Min]) -9/Materials (discovered 3 exits: *Mat / *Min x2) -9/Mines (discovered 3 exits: *Mat x2 / *Exi) -9/Exiles -8/Mines -8/Materials -7/Factory (discovered 3 exits: *Fac x2 / Sto) -6/Factory (discovered 3 exits: *Fac x3) -5/Factory (discovered 2 exits: *Fac / *Upp) -5/Upper Caves -5/Upper Caves (discovered 2 exits: *Fac / *Zhi) -5/Zhirov -4/Proximity Caves -4/Factory (discovered 2 exits: Res / *Upp) -4/Upper Caves -4/Upper Caves (discovered 2 exits: *Res / *War) -4/Warlord -3/Proximity Caves -3/Research (discovered 2 exits: *Tes x2) -3/Testing -2/Research (discovered 3 exits: *Acc / *Qua x2) -2/Quarantine (discovered 3 exits: *Acc / *Sec / [*Frg]) -2/Section 7 (discovered 1 exit: *Acc) History --------- Turn | Location | Event 33 | -11/Scrapyard | Discovered new exit (range 16) 67 | -11/Scrapyard | Entered Materials 126 | -10/Materials | Discovered new exit (range 12) 288 | -10/Materials | Discovered new exit (range 15) 314 | -10/Materials | Build established: Mutant 567 | -10/Materials | Core integrity fell below 50% 676 | -10/Materials | Discovered new exit (range 9) 762 | -10/Materials | Core integrity fell below 20% 930 | -10/Materials | Entered another Materials area 930 | -9/Materials | Evolved 2 slots: Utility x2 1185 | -9/Materials | Destroyed 19 combat bots 1402 | -9/Materials | Discovered new exit (range 5) 1488 | -9/Materials | Discovered new exit (range 10) 1958 | -9/Materials | Discovered new exit (range 16) 2130 | -9/Materials | First assault squad dispatched 2484 | -9/Materials | Entered Mines 2491 | -9/Mines | Received a Rocket Launcher from a helpful Derelict 2760 | -9/Mines | A weapon hastily lodged in a ceiling crevice suddenly fell to the ground 3003 | -9/Mines | Discovered new exit (range 9) 3095 | -9/Mines | Discovered new exit (range 9) 3267 | -9/Mines | Learned location of Storage (-7) 3329 | -9/Mines | Deemed a non-threat by the Exiles lab entrance 3329 | -9/Mines | Discovered new exit (range 5) 3335 | -9/Mines | Entered Exiles 3377 | -9/Exiles | Met 8R-AWN 3403 | -9/Exiles | Met EX-HEX 3456 | -9/Exiles | Met EX-DEC 3505 | -9/Exiles | Met EX-BIN 3561 | -9/Exiles | Learned location of Zion (-6) 3615 | -9/Exiles | Aligned with FarCom system 3616 | -9/Exiles | Given EX-Vault access code 3654 | -9/Exiles | Opened EX-Vault 3692 | -9/Exiles | Warned to stay clear of 0b10 Research branches 3941 | -9/Exiles | Attacked by the Exiles 3952 | -9/Exiles | Discovered new exit (range 14) 3969 | -9/Exiles | Entered Mines 4028 | -8/Mines | Found a Scrap Suit stashed away for nefarious purposes 4031 | -8/Mines | Found Scrap Suit 4315 | -8/Mines | Discovered new exit (range 11) 4344 | -8/Mines | Entered Materials 4344 | -8/Materials | Evolved 2 slots: Utility x2 4928 | -8/Materials | Discovered new exit (range 8) 5042 | -8/Materials | Central database locked down 5581 | -8/Materials | Identified exit to Factory 5581 | -8/Materials | Entered Factory 5581 | -7/Factory | Evolved 2 slots: Utility x1, Weapon x1 5582 | -7/Factory | Identified exit to Storage 5687 | -7/Factory | Repaired Huge Storage Unit 5853 | -7/Factory | Build established: Tank 5881 | -7/Factory | Garrison activated, responded to threat 6300 | -7/Factory | Fabricated Imp. Light Armor Plating? 6758 | -7/Factory | Destroyed 8 combat bots 6840 | -7/Factory | Fabricated Centrium Wheel? 7013 | -7/Factory | Discovered new exit (range 9) 7035 | -7/Factory | Discovered new exit (range 11) 7100 | -7/Factory | Entered another Factory area 7100 | -6/Factory | Evolved 2 slots: Utility x2 7347 | -6/Factory | Garrison activated, responded to threat 7364 | -6/Factory | Build established: Gunner 7524 | -6/Factory | Discovered new exit (range 15) 7650 | -6/Factory | Identified exit to Factory 7689 | -6/Factory | Discovered exit to Factory (range 16) 7800 | -6/Factory | First assault squad dispatched 8047 | -6/Factory | Fabricated Lyr. Light Armor Plating (x2) 8086 | -6/Factory | Destroyed 7 combat bots 8090 | -6/Factory | Lost 7 parts (4u3w) 8346 | -6/Factory | Core integrity fell below 50% 8374 | -6/Factory | Lost 4 parts (1p1n1u1w) 8451 | -6/Factory | Lost 3 parts (2u1w) 8504 | -6/Factory | Found Hvy. Reactive Plating 8517 | -6/Factory | Lost 3 parts (2u1w) 8810 | -6/Factory | Lost 6 parts (1p2u3w) 8845 | -6/Factory | Destroyed 7 combat bots 8880 | -6/Factory | Lost 5 parts (1p1n2u1w) 8966 | -6/Factory | Discovered exit to Factory (range 14) 8993 | -6/Factory | Core integrity fell below 20% 9021 | -6/Factory | System corruption reached 10% 9024 | -6/Factory | Destroyed 8 combat bots 9133 | -6/Factory | Entered another Factory area 9133 | -5/Factory | Evolved 2 slots: Power x1, Utility x1 9430 | -5/Factory | Discovered new exit (range 9) 9443 | -5/Factory | Identified exit to Factory 9637 | -5/Factory | Discovered new exit (range 17) 9683 | -5/Factory | Identified exit to Upper Caves 9823 | -5/Factory | Repaired Adv. Sensor Array 9881 | -5/Factory | Entered Upper Caves 9930 | -5/Upper Caves | Attracted the attention of an 0b10 checkpoint 10269 | -5/Upper Caves | Build established: Skirmisher 10361 | -5/Upper Caves | Encountered a Warlord checkpoint 10450 | -5/Upper Caves | Discovered new exit (range 15) 10471 | -5/Upper Caves | Identified exit to Upper Caves 10888 | -5/Upper Caves | Entered another Upper Caves area 10892 | -5/Upper Caves | Discovered exit to Factory (range 16) 11235 | -5/Upper Caves | Entered a destroyed Warlord outpost 11541 | -5/Upper Caves | Discovered new exit (range 15) 11598 | -5/Upper Caves | Crushed by falling debris 11601 | -5/Upper Caves | Identified exit to Zhirov 11621 | -5/Upper Caves | Learned location of Warlord (-4) 11636 | -5/Upper Caves | Entered Zhirov 11636 | -5/Zhirov | Discovered new exit (range 3) 11664 | -5/Zhirov | Met Zhirov 11695 | -5/Zhirov | Learned location of Quarantine (-2) 11695 | -5/Zhirov | Learned location of Testing (-3) 11695 | -5/Zhirov | Learned location of Command (-1) 11703 | -5/Zhirov | Zhirov requested help retrieving the SGEMP Prototype 11741 | -5/Zhirov | Found Alien Artifact 11741 | -5/Zhirov | Identified Integrated Reactor 11741 | -5/Zhirov | Installed Integrated Reactor, increased core energy generation (+10) 11958 | -5/Zhirov | Found Alien Artifact 11978 | -5/Zhirov | Build established: Mutant 12019 | -5/Zhirov | Entered Proximity Caves 12082 | -4/Proximity Caves | Learned Research trap positions 12291 | -4/Proximity Caves | Lost 3 parts (1p2u) 12449 | -4/Proximity Caves | Destroyed 11 combat bots 12452 | -4/Proximity Caves | Attracted the attention of an 0b10 base 12527 | -4/Proximity Caves | Lost 4 parts (1p1n1u1w) 12565 | -4/Proximity Caves | Destroyed 8 combat bots 12579 | -4/Proximity Caves | Learned Factory trap positions 12579 | -4/Proximity Caves | Learned Extension trap positions 12579 | -4/Proximity Caves | Learned Factory emergency access door positions 12579 | -4/Proximity Caves | Learned Research stockpile data 12766 | -4/Proximity Caves | Discovered exit to Factory (range 5) 12800 | -4/Proximity Caves | System corruption reached 10% 12802 | -4/Proximity Caves | Entered Factory 12802 | -4/Factory | Evolved 2 slots: Utility x2 12803 | -4/Factory | Identified exit to Research 12804 | -4/Factory | Loaded intel: 104 trap records 12894 | -4/Factory | Build established: Tank 12931 | -4/Factory | Identified Transdimensional Reconstructor 13552 | -4/Factory | First assault squad dispatched 13655 | -4/Factory | Lost 21 parts (3p1n7u10w) 13671 | -4/Factory | Discovered new exit (range 13) 13687 | -4/Factory | Identified exit to Upper Caves 13712 | -4/Factory | Found Prototype Processor 13712 | -4/Factory | Identified Exp. Signal Interpreter 14147 | -4/Factory | Build established: Skirmisher 14302 | -4/Factory | Entered Upper Caves 14534 | -4/Upper Caves | Attracted the attention of an 0b10 checkpoint 14818 | -4/Upper Caves | Found Botcube 15330 | -4/Upper Caves | Discovered new exit (range 6) 15429 | -4/Upper Caves | Identified exit to Upper Caves 15432 | -4/Upper Caves | Entered another Upper Caves area 15450 | -4/Upper Caves | Discovered exit to Research (range 12) 15482 | -4/Upper Caves | Learned Research emergency access door positions 15523 | -4/Upper Caves | Lost 3 parts (1p2u) 15557 | -4/Upper Caves | Attracted the attention of an 0b10 checkpoint 15941 | -4/Upper Caves | Build established: Gunner 16576 | -4/Upper Caves | Discovered new exit (range 5) 16581 | -4/Upper Caves | Identified exit to Warlord 16584 | -4/Upper Caves | Entered Warlord 16585 | -4/Warlord | Identified exit to Proximity Caves 16668 | -4/Warlord | System corruption cleaned by Quarantine Array 17087 | -4/Warlord | Build established: Scavenger-Gunner 17231 | -4/Warlord | Visited the Vortex Lab 17241 | -4/Warlord | Warlord's base attacked by MAIN.C 17246 | -4/Warlord | Found Prototype Energy Gun 17248 | -4/Warlord | Found Prototype Energy Gun 17252 | -4/Warlord | Found Prototype Piercing Weapon 17257 | -4/Warlord | Found Prototype Piercing Weapon 17327 | -4/Warlord | Identified Vortex Lance (x2) 17439 | -4/Warlord | Found Exp. Targeting Computer 17470 | -4/Warlord | Found Prototype Reactor 17470 | -4/Warlord | Identified Vortex Chain Reactor 17478 | -4/Warlord | Found Prototype Processor 17483 | -4/Warlord | Found Prototype Hackware 17504 | -4/Warlord | Botcube activated 17522 | -4/Warlord | Botcube completed mutation into flying form, armed with 2 melee weapons. 17538 | -4/Warlord | Met Warlord 17591 | -4/Warlord | Warlord forces counterattacked 17679 | -4/Warlord | Spotted Executioner 17692 | -4/Warlord | Destroyed Executioner 17699 | -4/Warlord | Spotted Executioner 17721 | -4/Warlord | Allies destroyed Executioner 17724 | -4/Warlord | Found Prototype Ballistic Cannon 17724 | -4/Warlord | Identified Hvy. Autocannon 17728 | -4/Warlord | Spotted Executioner 17744 | -4/Warlord | Spotted Executioner 17764 | -4/Warlord | Lost 11 allies 17765 | -4/Warlord | Found Corrupted Hvy. Autocannon 17916 | -4/Warlord | Warlord base infiltrated, sounded retreat 17917 | -4/Warlord | Enhanced Grunt warped into view 17917 | -4/Warlord | Enhanced Grunt warped into view 17917 | -4/Warlord | Enhanced Grunt warped into view 17917 | -4/Warlord | Enhanced Demolisher warped into view 17917 | -4/Warlord | Enhanced Demolisher warped into view 17917 | -4/Warlord | Enhanced Demolisher warped into view 17954 | -4/Warlord | Found Prototype Launcher 17961 | -4/Warlord | Lost 13 allies 17993 | -4/Warlord | Build established: Tank 18038 | -4/Warlord | Spotted B-86 Titan 18083 | -4/Warlord | Lost 4 allies 18084 | -4/Warlord | Spotted Striker 18085 | -4/Warlord | Identified Exp. Neutron Missile Launcher 18089 | -4/Warlord | Spotted Striker 18099 | -4/Warlord | Destroyed Striker 18099 | -4/Warlord | Spotted Striker 18134 | -4/Warlord | Destroyed 10 combat bots 18142 | -4/Warlord | Found Exp. Core Analyzer 18146 | -4/Warlord | Spotted Executioner 18196 | -4/Warlord | Entered Proximity Caves 18440 | -3/Proximity Caves | Spotted B-86 Titan 18744 | -3/Proximity Caves | Identified Exp. Armor Integrity Analyzer 18916 | -3/Proximity Caves | Core integrity fell below 50% 18931 | -3/Proximity Caves | Destroyed B-86 Titan 19044 | -3/Proximity Caves | Build established: Scavenger-Gunner 19282 | -3/Proximity Caves | Discovered exit to Research (range 18) 19345 | -3/Proximity Caves | Entered Research 19345 | -3/Research | Evolved 2 slots: Utility x1, Weapon x1 19346 | -3/Research | Loaded intel: 72 trap records 19355 | -3/Research | Identified System Mapper 19366 | -3/Research | Identified exit to Testing 19729 | -3/Research | Build established: Hacker-Tank 19735 | -3/Research | Found Prototype Device 19735 | -3/Research | Identified Exp. Thermal Shield 19742 | -3/Research | Found Exp. Thermal Shield 19852 | -3/Research | Fabricated Centrium Wheel? 20073 | -3/Research | Found Unknown Launcher 20073 | -3/Research | Identified Gamma Bomb Array 20263 | -3/Research | Build established: Hacker-Gunner 20279 | -3/Research | Entered Testing 20283 | -3/Testing | Identified Vortex Rail (x2) 20310 | -3/Testing | Lost 5 parts (1p3u1w) 20405 | -3/Testing | Found Powered Armor 20586 | -3/Testing | Repaired Centrium Medium Armor Plating 20648 | -3/Testing | Repaired Centrium Wheel+ 20751 | -3/Testing | Repaired Hvy. Antimatter Reactor? 20768 | -3/Testing | Found Prototype Processor 20774 | -3/Testing | Identified Spectral Analyzer 20831 | -3/Testing | Found Fusion Bomb Launcher 21029 | -3/Testing | Repaired Centrium Wheel+? 21077 | -3/Testing | Spotted Alpha 7 21097 | -3/Testing | Destroyed Alpha 7 21179 | -3/Testing | Found Exp. Signal Interpreter 21268 | -3/Testing | Found Prototype Ballistic Gun 21271 | -3/Testing | Identified Hyp. Multirail 21306 | -3/Testing | Scanned by Researcher 21633 | -3/Testing | Found Prototype Energy Cannon 21633 | -3/Testing | Identified Null Cannon 22025 | -3/Testing | Found Prototype Energy Cannon 22025 | -3/Testing | Identified Potential Cannon 22227 | -3/Testing | Spotted PL-4AGJLJ9VTP 22245 | -3/Testing | Destroyed PL-4AGJLJ9VTP 22448 | -3/Testing | Found System Mapper 22707 | -3/Testing | Repaired Nova Cannon 22768 | -3/Testing | Discovered new exit (range 9) 22774 | -3/Testing | Found Prototype Device 22774 | -3/Testing | Identified Adv. Kinecellerator 22899 | -3/Testing | Found Prototype Energy Cannon 22899 | -3/Testing | Identified Hpw. Disruptor Cannon 22951 | -3/Testing | Found Prototype Device 22951 | -3/Testing | Identified 2N-1CE's Frost Array 23027 | -3/Testing | Identified exit to Research 23029 | -3/Testing | Entered Research 23029 | -2/Research | Evolved 2 slots: Utility x2 23246 | -2/Research | Repaired Huge Storage Unit 23306 | -2/Research | Build established: Hacker-Tank 23375 | -2/Research | Repaired Centrium Wheel+ 23702 | -2/Research | Discovered new exit (range 9) 23767 | -2/Research | Identified exit to Access 23943 | -2/Research | Found Prototype Device 23945 | -2/Research | Identified Adv. EM Shield 24514 | -2/Research | Found Exp. Targeting Computer 24529 | -2/Research | Repaired Lyr. Medium Armor Plating 24559 | -2/Research | Found Prototype Device 24563 | -2/Research | Identified Exp. Transmission Jammer 25029 | -2/Research | First assault squad dispatched 25044 | -2/Research | Identified exit to Quarantine 25588 | -2/Research | Entered Quarantine 25708 | -2/Quarantine | Found Alien Artifact 25723 | -2/Quarantine | Discovered exit to Access (range 23) 25788 | -2/Quarantine | Found Alien Artifact 25791 | -2/Quarantine | Identified Subatomic Replicator 25791 | -2/Quarantine | Used Subatomic Replicator to replicate Null Cannon 25838 | -2/Quarantine | First assault squad dispatched 26061 | -2/Quarantine | Lost 3 parts (1p1u1w) 26081 | -2/Quarantine | Found Alien Artifact 26091 | -2/Quarantine | Found Alien Artifact 26102 | -2/Quarantine | Found Alien Artifact 26309 | -2/Quarantine | Identified Terrabomb (x3) 26309 | -2/Quarantine | Identified Core Reset Matrix 26475 | -2/Quarantine | Used Core Reset Matrix 26479 | -2/Quarantine | Detected hypermatrix surge 26479 | -2/Quarantine | Sensed 2 artifacts in vicinity 26679 | -2/Quarantine | Build established: Hacker-Gunner 26982 | -2/Quarantine | Found Core Cannon 27077 | -2/Quarantine | Found Core Stripper 27117 | -2/Quarantine | Discovered exit to Access (range 24) 27295 | -2/Quarantine | Spotted Fortress 27389 | -2/Quarantine | Lost 8 parts (2p3u3w) 27415 | -2/Quarantine | Discovered new exit (range 6) 27415 | -2/Quarantine | Discovered new exit (range 7) 27420 | -2/Quarantine | Identified exit to Section 7 27424 | -2/Quarantine | Entered Section 7 27425 | -2/Section 7 | Detected hypermatrix surge 27425 | -2/Section 7 | Sensed 20 artifacts in vicinity 27630 | -2/Section 7 | Found Prototype Launcher 27667 | -2/Section 7 | Identified Com. Tesla Bomb Launcher 27960 | -2/Section 7 | Build established: Hacker-Skirmisher 28064 | -2/Section 7 | Core integrity fell below 50% 28086 | -2/Section 7 | Lost 8 parts (2p1n3u2w) 28185 | -2/Section 7 | Used Terrabomb 28229 | -2/Section 7 | Crushed by falling debris 28260 | -2/Section 7 | Lost 3 parts (2u1w) 28626 | -2/Section 7 | Spotted Alpha 7 28633 | -2/Section 7 | Spotted Alpha 7 28695 | -2/Section 7 | Core integrity fell below 20% 28698 | -2/Section 7 | Warped through subspace 28723 | -2/Section 7 | Used Terrabomb 28727 | -2/Section 7 | Lost 12 parts (2p1n5u4w) 28769 | -2/Section 7 | Found Core Expander 28769 | -2/Section 7 | Installed Core Expander, added new Propulsion slot 28772 | -2/Section 7 | Found Core Expander 28772 | -2/Section 7 | Installed Core Expander, added new Propulsion slot 28776 | -2/Section 7 | Found Core Expander 28776 | -2/Section 7 | Installed Core Expander, added new Weapon slot 28833 | -2/Section 7 | Found LRC Storage 28833 | -2/Section 7 | Installed LRC Storage, increased inventory capacity (+2) 28836 | -2/Section 7 | Found LRC Armor 28836 | -2/Section 7 | Installed LRC Armor, increased core integrity (+250) 28900 | -2/Section 7 | Found Core Expander 29072 | -2/Section 7 | Spotted B-99 Colossus 29073 | -2/Section 7 | Build established: Alien-Gunner 29182 | -2/Section 7 | Spotted Executioner 29182 | -2/Section 7 | Spotted Executioner 29280 | -2/Section 7 | Found Matter Drive 29303 | -2/Section 7 | Self-destructed Last Messages --------------- 29277_ Dropped Huge Storage Unit. 29278_ Penetrated by Slug. 29280_ Acquired Matter Drive. 29293_ Slug penetrates Suspension Chamber. 29293_ Machine disabled. 29294_ Penetrated by Slug. 29294_ Slug penetrates Earth. 29296_ Penetrated by Slug. 29296_ Slug penetrates Earth. 29296_ Penetrated by Slug. 29297_ Slug penetrates Suspension Chamber. 29297_ Penetrated by Slug. 29299_ Slug penetrates Earth. 29300_ Penetrated by Slug. 29300_ Slug penetrates Reinforced Barrier. 29302_ Penetrated by Slug. 29302_ Suspension Chamber breached. 29302_ Slug penetrates Reinforced Barrier. [Achievement: 50k Club] [Achievement: Torch] Map ----- +----------------------------------------------------+ | | | | | | | | | | | | | | | | | | | | | | | | | | | | | ?????????????????????????????????????????????????? | | ?????????????????????????????????????????????????? | | ?????????????????????????????????????????????????? | | ?????????????????????????????????????????????????? | | ???????????????????????????##????????????????????? | | ??????????????????????????# #????????????????????? | | ??????????????????????###?# #????????????????????? | | ??????????????????????# ?# #????????????????????? | | ???????????????????????# ## ###??????????????????? | | ???????????????????????# ##?????????????????? | | ???????????????????######;;;;;;#####?????????????? | | ????????!?????????!#" ]@ E ; """""""???????????? | | ????????!!?? ?????!# " ] p ;"" " " "??????????? | | ??????????# ?!?!#""]![ E "p ????????? | | ????????? ########!!]#### ????????? | | ????????? ]![ p ???????? | | ????????? ! "" ??????? | | ????????? " ???????? | | ????????? "" """""???????? | | ????????? "???????????? | | ????????? """" ""??????????? | | ?????????? ?????" ?????????? | | ???????? ? ??""?" ?????????? | | ??????? ?" " ?????????? | | ??????? "" ?????????? | | ???????" ?????????? | | ???????" ?????????? | | ???????" """"""""""""" ??????????? | | ?????? """""""""""? ???????????? | | ?????? " " " " " " ???????????? | | ?????? " ???????????? | | ??????? """ ???????????? | | ??????? " ??????????? | | ??????? ? ?? ?????? | | ????????""" " " " ? ?????? | | ????????????"?" " """""""?? "?????? | +----------------------------------------------------+ Best States ------------- Heat Dissipation 149 Coolant Potential 200 Energy Generation 65 Energy Capacity 1080 Matter Stores 300 Matter Capacity 450 Sight Range 24 Robot Scan Range 18 Terrain Scan Range 20 Terrain Scan Density 210 Jamming Range 22 Power Amplification 30 Additional Mass Support 16 Base Temperature (-) 200 Corruption Containment 12 Corruption Block 20 Armor Coverage 1000 Resistance: KI 40 Resistance: TH 30 Resistance: EM 15 Core Shielding 30 Power Shielding 33 Propulsion Shielding 90 Utility Shielding 90 Weapon Shielding 90 Weapon Cycling 15 Phase Shifting 15 Evasion (%) 55 Targeting Accuracy 28 Target Analysis 8 Core Analysis 8 Armor Integrity Analysis 50 Recoil Reduction 4 Matter Filtering 50 Particle Charging 30 Offensive Hacking 40 Defensive Hacking 14 Item Schematics ----------------- Enh. Quantum Rifle | -2/Quarantine | Hacked Gravity Neutralizer | -2/Quarantine | Archive Exp. Reaction Control System | -2/Quarantine | Archive Hds. Centrium Wheel | -2/Quarantine | Archive Adv. Dynamic Insulation System | -2/Quarantine | Archive Enh. Hardcell Cannon | -2/Quarantine | Hacked Robot Schematics ------------------ R-10 Processor | -2/Quarantine | Archive Fabricated ------------ Imp. Light Armor Plating | x2 | -7/Factory Centrium Wheel | x2 | -7/Factory | Preloaded Lyr. Light Armor Plating | x2 | -6/Factory Centrium Wheel | x2 | -3/Research Repaired ---------- Huge Storage Unit | 41% | -7/Factory Adv. Sensor Array | 16% | -5/Factory Centrium Medium Armor Plating | 27% | -3/Testing Centrium Wheel | 6% | -3/Testing Hvy. Antimatter Reactor | 50% | -3/Testing Centrium Wheel | 65% | -3/Testing Nova Cannon | 37% | -3/Testing Huge Storage Unit | 56% | -2/Research Centrium Wheel | 66% | -2/Research Lyr. Medium Armor Plating | 71% | -2/Research Studied --------- None Alien Tech Used ----------------- Integrated Reactor Subatomic Replicator Core Reset Matrix Core Stripper Core Cannon Terrabomb Transdimensional Reconstructor Core Expander LRC Storage LRC Armor Matter Drive Achievements -------------- 50k Club IP Theft This Is My Hole Torch We Love MA Challenges ------------ None Game ------ Seed InertialMediumSpiker Manual? 0 Play Time 04:58:51 Cumulative 340.1 hours Start 2025.11.25 @ 21:03:32 End 2025.11.26 @ 10:55:21 Sessions 3 Manual Loads 0 Difficulty Rogue Special Mode None Game No. 357 Rogue 353 Adventurer 3 Explorer 1 Win Type - Total 2 Types 2/0/0/0/0/0/0/0/0/0 Lore% 83 Gallery% 78 Achievement% 65 Wizard Run 0 Options --------- Layout 0 ASCII 0 Keyboard 0 Movement Mouse Keybinds 0 Fullscreen 2 Font 18/SmallcapsGlow Map View 76x50 Zoom Use 0% Tactical HUD 1 Map Filters NONE Filters NONE Steam 1 RUN: 7624eb37-2650-44b4-bd8f-5b396d7660af